[Event "Late-Titled-Tuesday-Blitz-September-19-2023"]
[Site "Chess.com"]
[Date "2023.09.19"]
[Round "10"]
[White "AsaHoffmann"]
[Black "stolencandy13"]
[Result "0-1"]
[WhiteElo "2386"]
[BlackElo "2571"]
[TimeControl "180+1"]
[EndTime "15:56:39 PDT"]
[Termination "stolencandy13 won on time"]

1. d4 {[%clk 0:02:54.3]} 1... Nf6 {[%clk 0:02:58.1]} 2. Bg5 {[%clk 0:02:51.6]}
2... Ne4 {[%clk 0:02:57.6]} 3. Bf4 {[%clk 0:02:51]} 3... d5 {[%clk 0:02:58.2]}
4. f3 {[%clk 0:02:50.7]} 4... Nf6 {[%clk 0:02:57.3]} 5. e4 {[%clk 0:02:50.6]}
5... dxe4 {[%clk 0:02:55.6]} 6. Nc3 {[%clk 0:02:50.3]} 6... e3 {[%clk
0:02:44.9]} 7. Bc4 {[%clk 0:02:49.7]} 7... e6 {[%clk 0:02:42.7]} 8. Qd3 {[%clk
0:02:47.9]} 8... Nbd7 {[%clk 0:02:39.6]} 9. Bxe3 {[%clk 0:02:46.6]} 9... Nb6
{[%clk 0:02:39.8]} 10. Bb3 {[%clk 0:02:46.4]} 10... Nbd5 {[%clk 0:02:39]} 11.
Bd2 {[%clk 0:02:46.3]} 11... Nxc3 {[%clk 0:02:35.9]} 12. Bxc3 {[%clk 0:02:43.2]}
12... c5 {[%clk 0:02:29.2]} 13. Ne2 {[%clk 0:02:36.5]} 13... Bd7 {[%clk
0:02:24.4]} 14. O-O-O {[%clk 0:02:33.7]} 14... Qc7 {[%clk 0:02:17.5]} 15. d5
{[%clk 0:02:27.3]} 15... Nxd5 {[%clk 0:02:09.9]} 16. Bxd5 {[%clk 0:02:26.2]}
16... exd5 {[%clk 0:02:10.3]} 17. Qxd5 {[%clk 0:02:25.4]} 17... Be6 {[%clk
0:02:06.6]} 18. Qe4 {[%clk 0:02:17.6]} 18... Rc8 {[%clk 0:01:33.6]} 19. Nf4
{[%clk 0:02:16.7]} 19... Qc6 {[%clk 0:01:28.3]} 20. Nxe6 {[%clk 0:01:58.1]}
20... Qxe4 {[%clk 0:01:17.6]} 21. Nxg7+ {[%clk 0:01:46.8]} 21... Bxg7 {[%clk
0:01:17.2]} 22. fxe4 {[%clk 0:01:46.2]} 22... Bxc3 {[%clk 0:01:17.1]} 23. bxc3
{[%clk 0:01:46.2]} 23... Rg8 {[%clk 0:01:16]} 24. g3 {[%clk 0:01:46.1]} 24...
Rg6 {[%clk 0:01:14.4]} 25. Rd5 {[%clk 0:01:44.5]} 25... b6 {[%clk 0:01:11]} 26.
Rhd1 {[%clk 0:01:42.9]} 26... Re6 {[%clk 0:01:07.2]} 27. e5 {[%clk 0:01:41.9]}
27... Rc7 {[%clk 0:00:57]} 28. Rd8+ {[%clk 0:01:35]} 28... Ke7 {[%clk
0:00:56.9]} 29. R1d5 {[%clk 0:01:32.9]} 29... Rxe5 {[%clk 0:00:46.6]} 30. Rxe5+
{[%clk 0:01:26.8]} 30... Kxd8 {[%clk 0:00:46.7]} 31. Rh5 {[%clk 0:01:20]} 31...
f6 {[%clk 0:00:45.6]} 32. Rh6 {[%clk 0:01:19.9]} 32... Rf7 {[%clk 0:00:45.6]}
33. c4 {[%clk 0:01:19.5]} 33... Ke7 {[%clk 0:00:45.1]} 34. Kd2 {[%clk
0:01:19.3]} 34... Kf8 {[%clk 0:00:45.4]} 35. Kc3 {[%clk 0:01:12.4]} 35... Kg7
{[%clk 0:00:45.4]} 36. Rh4 {[%clk 0:01:11.8]} 36... Re7 {[%clk 0:00:45.6]} 37.
Rf4 {[%clk 0:01:06.6]} 37... Re3+ {[%clk 0:00:42.7]} 38. Kb2 {[%clk 0:01:04.6]}
38... Re2 {[%clk 0:00:42.5]} 39. h4 {[%clk 0:01:03.3]} 39... Rg2 {[%clk
0:00:41.2]} 40. g4 {[%clk 0:01:02.5]} 40... h6 {[%clk 0:00:38.2]} 41. h5 {[%clk
0:00:59.4]} 41... Rg3 {[%clk 0:00:34.9]} 42. c3 {[%clk 0:00:55]} 42... Rg2+
{[%clk 0:00:33.8]} 43. Kb3 {[%clk 0:00:54.7]} 43... Kf7 {[%clk 0:00:33.6]} 44.
Re4 {[%clk 0:00:50.5]} 44... Rf2 {[%clk 0:00:32.1]} 45. a4 {[%clk 0:00:47]}
45... f5 {[%clk 0:00:22.5]} 46. gxf5 {[%clk 0:00:43.8]} 46... Rxf5 {[%clk
0:00:23.4]} 47. Rh4 {[%clk 0:00:40.5]} 47... Kf6 {[%clk 0:00:23.2]} 48. a5
{[%clk 0:00:40.5]} 48... Kg5 {[%clk 0:00:20.4]} 49. Rh1 {[%clk 0:00:39.5]} 49...
Kg4 {[%clk 0:00:20.8]} 50. axb6 {[%clk 0:00:38.4]} 50... axb6 {[%clk 0:00:20.3]}
51. Ka4 {[%clk 0:00:33.6]} 51... Rxh5 {[%clk 0:00:20.2]} 52. Rg1+ {[%clk
0:00:33.4]} 52... Kf5 {[%clk 0:00:20.1]} 53. Kb5 {[%clk 0:00:32.9]} 53... Rg5
{[%clk 0:00:19.4]} 54. Rf1+ {[%clk 0:00:31.5]} 54... Ke4 {[%clk 0:00:18.8]} 55.
Kxb6 {[%clk 0:00:30.9]} 55... Kd3 {[%clk 0:00:19.2]} 56. Kb5 {[%clk 0:00:23.9]}
56... Kxc3 {[%clk 0:00:18.9]} 57. Rf3+ {[%clk 0:00:22.8]} 57... Kd2 {[%clk
0:00:18.6]} 58. Rh3 {[%clk 0:00:22.4]} 58... h5 {[%clk 0:00:19]} 59. Kc6 {[%clk
0:00:21.7]} 59... Ke2 {[%clk 0:00:19]} 60. Kd6 {[%clk 0:00:14]} 60... Kf2 {[%clk
0:00:19.1]} 61. Ke6 {[%clk 0:00:13.1]} 61... Kg2 {[%clk 0:00:19.1]} 62. Rc3
{[%clk 0:00:10.1]} 62... h4 {[%clk 0:00:18.2]} 63. Kf6 {[%clk 0:00:08.8]} 63...
Rg4 {[%clk 0:00:18.2]} 64. Kf5 {[%clk 0:00:07.8]} 64... Rg3 {[%clk 0:00:16.2]}
65. Rc2+ {[%clk 0:00:04.5]} 65... Kf3 {[%clk 0:00:16.2]} 66. Rc3+ {[%clk
0:00:03.8]} 66... Kf2 {[%clk 0:00:15.9]} 67. Rc2+ {[%clk 0:00:03.8]} 67... Ke3
{[%clk 0:00:16.1]} 0-1

[Event "Late-Titled-Tuesday-Blitz-September-19-2023"]
[Site "Chess.com"]
[Date "2023.09.19"]
[Round "10"]
[White "Jospem"]
[Black "Sina_Movahed"]
[Result "0-1"]
[WhiteElo "3063"]
[BlackElo "2999"]
[TimeControl "180+1"]
[EndTime "15:56:53 PDT"]
[Termination "Sina_Movahed won on time"]

1. e4 {[%clk 0:02:56.2]} 1... c5 {[%clk 0:02:59.7]} 2. Nf3 {[%clk 0:02:56.9]}
2... d6 {[%clk 0:02:59.8]} 3. c3 {[%clk 0:02:57.6]} 3... Nf6 {[%clk 0:02:59.9]}
4. h3 {[%clk 0:02:58.3]} 4... g6 {[%clk 0:02:59.5]} 5. Bd3 {[%clk 0:02:58.8]}
5... Bg7 {[%clk 0:02:59.6]} 6. Bc2 {[%clk 0:02:59.4]} 6... e5 {[%clk 0:02:59.7]}
7. d4 {[%clk 0:03:00.2]} 7... cxd4 {[%clk 0:02:59.4]} 8. cxd4 {[%clk 0:03:01.1]}
8... exd4 {[%clk 0:03:00.3]} 9. Nxd4 {[%clk 0:03:01.9]} 9... O-O {[%clk
0:03:00.8]} 10. O-O {[%clk 0:03:02.5]} 10... Nc6 {[%clk 0:03:01.4]} 11. Nxc6
{[%clk 0:03:02.4]} 11... bxc6 {[%clk 0:03:01]} 12. Nc3 {[%clk 0:03:03.3]} 12...
d5 {[%clk 0:03:01.5]} 13. Bg5 {[%clk 0:03:03.4]} 13... h6 {[%clk 0:02:59.5]} 14.
Be3 {[%clk 0:03:03.8]} 14... Re8 {[%clk 0:02:57.1]} 15. Ba4 {[%clk 0:02:53.3]}
15... Bd7 {[%clk 0:02:52]} 16. exd5 {[%clk 0:02:44.5]} 16... Nxd5 {[%clk
0:02:47.3]} 17. Nxd5 {[%clk 0:02:44.1]} 17... cxd5 {[%clk 0:02:48.2]} 18. Bb3
{[%clk 0:02:29.6]} 18... Be6 {[%clk 0:02:41.3]} 19. Qd2 {[%clk 0:02:23.9]} 19...
Qh4 {[%clk 0:02:22.3]} 20. Rad1 {[%clk 0:02:23.2]} 20... d4 {[%clk 0:02:15.2]}
21. Bf4 {[%clk 0:02:22.3]} 21... Bxb3 {[%clk 0:02:12.2]} 22. axb3 {[%clk
0:02:23.2]} 22... Qh5 {[%clk 0:02:05.7]} 23. Qd3 {[%clk 0:01:49.9]} 23... Re6
{[%clk 0:01:56.2]} 24. f3 {[%clk 0:01:34.1]} 24... Rae8 {[%clk 0:01:54.5]} 25.
Ra1 {[%clk 0:01:13.3]} 25... Qh4 {[%clk 0:01:49.8]} 26. Bd2 {[%clk 0:00:57.2]}
26... Re2 {[%clk 0:01:44.6]} 27. f4 {[%clk 0:00:57.4]} 27... R8e4 {[%clk
0:01:12.2]} 28. Rxa7 {[%clk 0:00:37.6]} 28... Qf6 {[%clk 0:01:11.6]} 29. Raa1
{[%clk 0:00:31]} 29... Qc6 {[%clk 0:01:10.4]} 30. Rf3 {[%clk 0:00:29.1]} 30...
Bf8 {[%clk 0:01:06.3]} 31. Raf1 {[%clk 0:00:29]} 31... Bc5 {[%clk 0:00:59.8]}
32. R1f2 {[%clk 0:00:28.6]} 32... Rxf2 {[%clk 0:00:44.8]} 33. Rxf2 {[%clk
0:00:29.5]} 33... Qe6 {[%clk 0:00:41.1]} 34. b4 {[%clk 0:00:27.6]} 34... Bb6
{[%clk 0:00:40.9]} 35. Kh2 {[%clk 0:00:25]} 35... h5 {[%clk 0:00:40.8]} 36. Rf3
{[%clk 0:00:17]} 36... h4 {[%clk 0:00:40.4]} 37. Kg1 {[%clk 0:00:14.7]} 37...
Re2 {[%clk 0:00:38]} 38. Kf1 {[%clk 0:00:12.9]} 38... Re4 {[%clk 0:00:36.9]} 39.
Kg1 {[%clk 0:00:13.5]} 39... Kh7 {[%clk 0:00:34.9]} 40. Kf1 {[%clk 0:00:12.4]}
40... f5 {[%clk 0:00:32.2]} 41. b3 {[%clk 0:00:12.2]} 41... Qd5 {[%clk
0:00:28.6]} 42. Qc4 {[%clk 0:00:10.6]} 42... Qd7 {[%clk 0:00:26.7]} 43. Rd3
{[%clk 0:00:10.1]} 43... Qa7 {[%clk 0:00:24.5]} 44. Qc2 {[%clk 0:00:05]} 44...
Kh6 {[%clk 0:00:20.6]} 45. Bc1 {[%clk 0:00:03.4]} 45... Qe7 {[%clk 0:00:19.8]}
46. Bd2 {[%clk 0:00:02.5]} 46... Qa7 {[%clk 0:00:19]} 47. Qd1 {[%clk 0:00:02.8]}
47... Qa6 {[%clk 0:00:17.1]} 48. Qc2 {[%clk 0:00:01.9]} 48... Qa1+ {[%clk
0:00:15.8]} 49. Qc1 {[%clk 0:00:02.5]} 49... Qa2 {[%clk 0:00:15.1]} 50. Kg1
{[%clk 0:00:02.7]} 50... Re2 {[%clk 0:00:14.2]} 51. Qd1 {[%clk 0:00:03.2]} 51...
Re4 {[%clk 0:00:14]} 52. Kh2 {[%clk 0:00:03.7]} 52... Qa6 {[%clk 0:00:13.6]} 53.
Qf3 {[%clk 0:00:01.8]} 53... Qb5 {[%clk 0:00:13.5]} 54. Kg1 {[%clk 0:00:01.8]}
54... Qe8 {[%clk 0:00:09.3]} 55. Kh2 {[%clk 0:00:02.1]} 55... Re2 {[%clk
0:00:09.5]} 56. Qf1 {[%clk 0:00:02]} 56... Qe4 {[%clk 0:00:08.5]} 57. Bc1 {[%clk
0:00:02.2]} 57... Qxd3 {[%clk 0:00:06.3]} 58. b5 {[%clk 0:00:02.5]} 58... Qe4
{[%clk 0:00:06.7]} 59. Bd2 {[%clk 0:00:02]} 59... d3 {[%clk 0:00:07.3]} 60. Be1
{[%clk 0:00:02.7]} 60... Rxe1 {[%clk 0:00:07.4]} 61. Qxd3 {[%clk 0:00:01.8]}
61... Bg1+ {[%clk 0:00:07]} 0-1

[Event "Late-Titled-Tuesday-Blitz-September-19-2023"]
[Site "Chess.com"]
[Date "2023.09.19"]
[Round "10"]
[White "jk13"]
[Black "Dacean99"]
[Result "1/2-1/2"]
[WhiteElo "2623"]
[BlackElo "2496"]
[TimeControl "180+1"]
[EndTime "15:57:08 PDT"]
[Termination "Game drawn by repetition"]

1. Nf3 {[%clk 0:02:57.5]} 1... d5 {[%clk 0:02:58.8]} 2. g3 {[%clk 0:02:58.4]}
2... Nf6 {[%clk 0:02:58.3]} 3. Bg2 {[%clk 0:02:59]} 3... c5 {[%clk 0:02:57.2]}
4. O-O {[%clk 0:02:59.5]} 4... Nc6 {[%clk 0:02:57.2]} 5. d3 {[%clk 0:03:00.1]}
5... e5 {[%clk 0:02:47]} 6. Nbd2 {[%clk 0:03:00.4]} 6... Be7 {[%clk 0:02:46]} 7.
e4 {[%clk 0:03:00.7]} 7... O-O {[%clk 0:02:44.8]} 8. Re1 {[%clk 0:03:00]} 8...
d4 {[%clk 0:02:43.8]} 9. Nc4 {[%clk 0:02:58.9]} 9... Qc7 {[%clk 0:02:41.3]} 10.
a4 {[%clk 0:02:58.8]} 10... a6 {[%clk 0:02:39.5]} 11. a5 {[%clk 0:02:58.6]}
11... Be6 {[%clk 0:02:37.5]} 12. Bd2 {[%clk 0:02:40.9]} 12... Rfe8 {[%clk
0:02:29.7]} 13. b3 {[%clk 0:02:40.1]} 13... h6 {[%clk 0:02:24.9]} 14. Nh4 {[%clk
0:02:33.1]} 14... Rad8 {[%clk 0:02:23.3]} 15. Nf5 {[%clk 0:02:32.1]} 15... Bf8
{[%clk 0:02:23.8]} 16. Kh1 {[%clk 0:02:24.5]} 16... Ne7 {[%clk 0:02:22.9]} 17.
Nh4 {[%clk 0:02:13.9]} 17... Nc6 {[%clk 0:02:15.4]} 18. h3 {[%clk 0:02:08.9]}
18... Qd7 {[%clk 0:02:12.3]} 19. Kh2 {[%clk 0:02:07.7]} 19... Bd6 {[%clk
0:02:04.2]} 20. Qf3 {[%clk 0:02:05.3]} 20... Bc7 {[%clk 0:02:03.6]} 21. Nf5
{[%clk 0:02:00.5]} 21... Bxf5 {[%clk 0:02:02.5]} 22. exf5 {[%clk 0:02:01.4]}
22... Re7 {[%clk 0:01:53.9]} 23. Re2 {[%clk 0:02:00.9]} 23... Rde8 {[%clk
0:01:54.1]} 24. Rae1 {[%clk 0:02:00.9]} 24... Bb8 {[%clk 0:01:50.4]} 25. Kh1
{[%clk 0:01:59.8]} 25... Nb4 {[%clk 0:01:46.8]} 26. Bxb4 {[%clk 0:01:54]} 26...
cxb4 {[%clk 0:01:47.7]} 27. Kg1 {[%clk 0:01:32.5]} 27... Qb5 {[%clk 0:01:46.3]}
28. g4 {[%clk 0:01:28.5]} 28... Nh7 {[%clk 0:01:42]} 29. h4 {[%clk 0:01:28.5]}
29... f6 {[%clk 0:01:35.6]} 30. Qd5+ {[%clk 0:01:11.9]} 30... Kh8 {[%clk
0:01:30.8]} 31. Qxb5 {[%clk 0:01:00.2]} 31... axb5 {[%clk 0:01:31.7]} 32. Nb6
{[%clk 0:01:00.7]} 32... Bc7 {[%clk 0:01:27.5]} 33. Nd5 {[%clk 0:00:56.8]} 33...
Rd7 {[%clk 0:01:27.1]} 34. Ra1 {[%clk 0:00:53.2]} 34... Ra8 {[%clk 0:01:24.5]}
35. Nxb4 {[%clk 0:00:46.6]} 35... Rxa5 {[%clk 0:01:24]} 36. Rxa5 {[%clk
0:00:44.3]} 36... Bxa5 {[%clk 0:01:24.9]} 37. Nd5 {[%clk 0:00:44.1]} 37... Nf8
{[%clk 0:01:21.9]} 38. b4 {[%clk 0:00:43.6]} 38... Bd8 {[%clk 0:01:18.8]} 39.
Re1 {[%clk 0:00:44.1]} 39... Rd6 {[%clk 0:01:18.6]} 40. Ra1 {[%clk 0:00:43.1]}
40... Ra6 {[%clk 0:01:17.7]} 41. Rxa6 {[%clk 0:00:35.4]} 41... bxa6 {[%clk
0:01:18.6]} 42. Kf1 {[%clk 0:00:33.5]} 42... Nd7 {[%clk 0:01:16.6]} 43. Ke2
{[%clk 0:00:32.7]} 43... Kg8 {[%clk 0:01:14]} 44. c3 {[%clk 0:00:28.9]} 44... a5
{[%clk 0:01:03.5]} 45. bxa5 {[%clk 0:00:25.8]} 45... Bxa5 {[%clk 0:01:04.4]} 46.
cxd4 {[%clk 0:00:21]} 46... exd4 {[%clk 0:01:05.3]} 47. Nf4 {[%clk 0:00:18.7]}
47... Bc3 {[%clk 0:01:03.2]} 48. Bd5+ {[%clk 0:00:18.8]} 48... Kf8 {[%clk
0:01:01.7]} 49. Ng6+ {[%clk 0:00:17.5]} 49... Ke8 {[%clk 0:01:01.6]} 50. Bc6
{[%clk 0:00:17.8]} 50... b4 {[%clk 0:00:58.9]} 51. Ba4 {[%clk 0:00:18.7]} 51...
Kd8 {[%clk 0:00:57.7]} 52. Nf4 {[%clk 0:00:17.5]} 52... Nc5 {[%clk 0:00:57.4]}
53. Ne6+ {[%clk 0:00:16.8]} 53... Nxe6 {[%clk 0:00:57.6]} 54. fxe6 {[%clk
0:00:17.7]} 54... Ke7 {[%clk 0:00:57.3]} 55. Bb3 {[%clk 0:00:18]} 55... g6
{[%clk 0:00:57.1]} 56. f4 {[%clk 0:00:18.2]} 56... f5 {[%clk 0:00:56.3]} 57.
gxf5 {[%clk 0:00:17.2]} 57... gxf5 {[%clk 0:00:57.2]} 58. Kf3 {[%clk 0:00:17.3]}
58... h5 {[%clk 0:00:55.3]} 59. Kg3 {[%clk 0:00:17.1]} 59... Be1+ {[%clk
0:00:55]} 60. Kh3 {[%clk 0:00:17.2]} 60... Kd6 {[%clk 0:00:54.1]} 61. Bc4 {[%clk
0:00:16.3]} 61... Bc3 {[%clk 0:00:53.2]} 62. Bb3 {[%clk 0:00:16.2]} 62... Bd2
{[%clk 0:00:51.3]} 63. Kg3 {[%clk 0:00:16.8]} 63... Be3 {[%clk 0:00:51.3]} 64.
Kf3 {[%clk 0:00:16.9]} 64... Ke7 {[%clk 0:00:51.3]} 65. Bc4 {[%clk 0:00:17]}
65... Kf6 {[%clk 0:00:51.2]} 66. Bb3 {[%clk 0:00:16.7]} 66... Bd2 {[%clk
0:00:47.6]} 67. Bc4 {[%clk 0:00:16.6]} 67... Bc3 {[%clk 0:00:47.2]} 68. Kg3
{[%clk 0:00:16.4]} 68... Bb2 {[%clk 0:00:46.5]} 69. Bb3 {[%clk 0:00:16.8]} 69...
Ke7 {[%clk 0:00:44.3]} 70. Bc4 {[%clk 0:00:17.1]} 70... Bc3 {[%clk 0:00:44.5]}
71. Bd5 {[%clk 0:00:17.1]} 71... Be1+ {[%clk 0:00:44.2]} 72. Kh3 {[%clk
0:00:17.1]} 72... Kd6 {[%clk 0:00:44.7]} 73. Bb3 {[%clk 0:00:16.8]} 73... Bf2
{[%clk 0:00:45]} 74. Bc4 {[%clk 0:00:15.8]} 74... Be1 {[%clk 0:00:43]} 75. Bb3
{[%clk 0:00:15.4]} 75... Bc3 {[%clk 0:00:43.5]} 76. Bc4 {[%clk 0:00:15.7]} 76...
Bb2 {[%clk 0:00:43.9]} 77. Kg3 {[%clk 0:00:15.7]} 77... Ba3 {[%clk 0:00:43.7]}
78. Bb3 {[%clk 0:00:16.2]} 78... Ke7 {[%clk 0:00:42]} 79. Bc4 {[%clk 0:00:16.5]}
79... Kd8 {[%clk 0:00:35.7]} 80. Bb3 {[%clk 0:00:16.3]} 80... Bc1 {[%clk
0:00:35.5]} 81. Bc4 {[%clk 0:00:16.3]} 81... Bd2 {[%clk 0:00:35.8]} 82. Bb3
{[%clk 0:00:16.4]} 82... Kc7 {[%clk 0:00:35.6]} 83. Bc4 {[%clk 0:00:16.3]} 83...
Kd6 {[%clk 0:00:35.9]} 84. Bb3 {[%clk 0:00:16.5]} 84... Bc1 {[%clk 0:00:35.9]}
85. Bc4 {[%clk 0:00:16.2]} 85... Ba3 {[%clk 0:00:36.4]} 86. Bb3 {[%clk
0:00:16.5]} 86... Kc6 {[%clk 0:00:35.3]} 87. Bc4 {[%clk 0:00:16.2]} 87... Bb2
{[%clk 0:00:32.7]} 88. Bb3 {[%clk 0:00:16.5]} 88... Bc3 {[%clk 0:00:32.3]} 89.
Bc4 {[%clk 0:00:16.8]} 89... Bd2 {[%clk 0:00:30.6]} 90. Bb3 {[%clk 0:00:16.9]}
90... Be1+ {[%clk 0:00:29.9]} 91. Kh3 {[%clk 0:00:16.9]} 91... Kc7 {[%clk
0:00:28.6]} 92. Bc4 {[%clk 0:00:16.4]} 92... Kd6 {[%clk 0:00:28.1]} 93. Bb3
{[%clk 0:00:16.7]} 1/2-1/2

[Event "Late-Titled-Tuesday-Blitz-September-19-2023"]
[Site "Chess.com"]
[Date "2023.09.19"]
[Round "10"]
[White "Oleksandr_Bortnyk"]
[Black "sergiochess83"]
[Result "1/2-1/2"]
[WhiteElo "3008"]
[BlackElo "2900"]
[TimeControl "180+1"]
[EndTime "15:57:12 PDT"]
[Termination "Game drawn by repetition"]

1. d4 {[%clk 0:03:00.9]} 1... Nf6 {[%clk 0:02:39.9]} 2. Nc3 {[%clk 0:03:01.8]}
2... d5 {[%clk 0:02:38]} 3. Bf4 {[%clk 0:03:02.5]} 3... Bf5 {[%clk 0:02:37.3]}
4. e3 {[%clk 0:03:02.9]} 4... e6 {[%clk 0:02:29.3]} 5. Nf3 {[%clk 0:03:03.5]}
5... Bd6 {[%clk 0:01:36.4]} 6. Ne5 {[%clk 0:03:02.9]} 6... h5 {[%clk 0:01:18.6]}
7. Bd3 {[%clk 0:03:02.5]} 7... c6 {[%clk 0:00:58.9]} 8. O-O {[%clk 0:02:47.5]}
8... Qc7 {[%clk 0:00:39]} 9. Qf3 {[%clk 0:02:44.7]} 9... Bg4 {[%clk 0:00:35.7]}
10. Nxg4 {[%clk 0:02:26.9]} 10... hxg4 {[%clk 0:00:36.6]} 11. Bxd6 {[%clk
0:02:22.3]} 11... Qxd6 {[%clk 0:00:37.5]} 12. Qg3 {[%clk 0:02:22.2]} 12... Qxg3
{[%clk 0:00:37]} 13. hxg3 {[%clk 0:02:22.8]} 13... Nbd7 {[%clk 0:00:37.1]} 14.
f4 {[%clk 0:02:21.8]} 14... Nh5 {[%clk 0:00:34.7]} 15. Kf2 {[%clk 0:02:21]}
15... f5 {[%clk 0:00:35.1]} 16. Ne2 {[%clk 0:02:14.3]} 16... Ke7 {[%clk
0:00:34.6]} 17. c4 {[%clk 0:02:14.8]} 17... Nhf6 {[%clk 0:00:34.1]} 18. Rfc1
{[%clk 0:02:12.3]} 18... g6 {[%clk 0:00:27.3]} 19. c5 {[%clk 0:02:10.7]} 19...
Ne4+ {[%clk 0:00:22.4]} 20. Bxe4 {[%clk 0:02:10.6]} 20... dxe4 {[%clk
0:00:23.3]} 21. b4 {[%clk 0:02:09.5]} 21... Nf6 {[%clk 0:00:20.2]} 22. Rab1
{[%clk 0:02:09.7]} 22... a6 {[%clk 0:00:20.1]} 23. a4 {[%clk 0:02:10.1]} 23...
Nd5 {[%clk 0:00:20.4]} 24. Rc2 {[%clk 0:02:07.5]} 24... Kf6 {[%clk 0:00:20]} 25.
Rcb2 {[%clk 0:02:03.4]} 25... Ra7 {[%clk 0:00:19.4]} 26. Rb3 {[%clk 0:01:59.8]}
26... Raa8 {[%clk 0:00:19.8]} 27. Nc3 {[%clk 0:01:48.5]} 27... Nxc3 {[%clk
0:00:15]} 28. Rxc3 {[%clk 0:01:49.4]} 28... g5 {[%clk 0:00:15.7]} 29. Rcb3
{[%clk 0:01:42.6]} 29... gxf4 {[%clk 0:00:15.5]} 30. gxf4 {[%clk 0:01:43.5]}
30... Rag8 {[%clk 0:00:12.6]} 31. Kg3 {[%clk 0:01:44.4]} 31... Ra8 {[%clk
0:00:11.7]} 32. R3b2 {[%clk 0:01:36.5]} 32... Ra7 {[%clk 0:00:11.7]} 33. Rc2
{[%clk 0:01:32.7]} 33... Raa8 {[%clk 0:00:12]} 34. Rc3 {[%clk 0:01:33.6]} 34...
Ra7 {[%clk 0:00:12.4]} 35. Rcb3 {[%clk 0:01:34.5]} 35... Raa8 {[%clk 0:00:12.7]}
36. b5 {[%clk 0:01:35.4]} 36... axb5 {[%clk 0:00:12.5]} 37. axb5 {[%clk
0:01:36.3]} 37... Ra2 {[%clk 0:00:11.7]} 38. bxc6 {[%clk 0:01:36.6]} 38... bxc6
{[%clk 0:00:12.4]} 39. Rb6 {[%clk 0:01:30]} 39... Re2 {[%clk 0:00:08.4]} 40.
R6b3 {[%clk 0:00:50.5]} 40... Ra8 {[%clk 0:00:08.3]} 41. R1b2 {[%clk 0:00:41.9]}
41... Ra2 {[%clk 0:00:07.8]} 42. Rxa2 {[%clk 0:00:38.6]} 42... Rxa2 {[%clk
0:00:08.7]} 43. Rb6 {[%clk 0:00:37.5]} 43... Re2 {[%clk 0:00:08.7]} 44. Rxc6
{[%clk 0:00:37.8]} 44... Rxe3+ {[%clk 0:00:08.9]} 45. Kf2 {[%clk 0:00:38.7]}
45... Rd3 {[%clk 0:00:09.8]} 46. Rd6 {[%clk 0:00:36.8]} 46... g3+ {[%clk
0:00:09.2]} 47. Ke2 {[%clk 0:00:36.9]} 47... Ke7 {[%clk 0:00:10.1]} 48. Ke1
{[%clk 0:00:31]} 48... Ra3 {[%clk 0:00:09]} 49. d5 {[%clk 0:00:28.5]} 49... exd5
{[%clk 0:00:07.8]} 50. Rxd5 {[%clk 0:00:29.4]} 50... Ra1+ {[%clk 0:00:06.4]} 51.
Ke2 {[%clk 0:00:28.5]} 51... Ra2+ {[%clk 0:00:06.7]} 52. Ke3 {[%clk 0:00:29.1]}
52... Ke6 {[%clk 0:00:06.6]} 53. Rd6+ {[%clk 0:00:23]} 53... Ke7 {[%clk
0:00:06.7]} 54. Rd5 {[%clk 0:00:20.5]} 54... Ke6 {[%clk 0:00:07.2]} 55. Rd6+
{[%clk 0:00:16.2]} 55... Ke7 {[%clk 0:00:07.6]} 56. Rg6 {[%clk 0:00:16.3]} 56...
Rxg2 {[%clk 0:00:07]} 57. Rg7+ {[%clk 0:00:15.1]} 57... Kf6 {[%clk 0:00:06.7]}
58. Rg8 {[%clk 0:00:12.2]} 58... Rc2 {[%clk 0:00:06.8]} 59. Kd4 {[%clk
0:00:09.6]} 59... g2 {[%clk 0:00:06.9]} 60. Rg5 {[%clk 0:00:05.4]} 60... Rd2+
{[%clk 0:00:05.5]} 61. Ke3 {[%clk 0:00:04.6]} 61... Rc2 {[%clk 0:00:05.8]} 62.
Kd4 {[%clk 0:00:05.2]} 62... Ke6 {[%clk 0:00:06]} 63. Rg6+ {[%clk 0:00:05.4]}
63... Kf7 {[%clk 0:00:06.4]} 64. Rg5 {[%clk 0:00:03.5]} 64... Kf6 {[%clk
0:00:06.7]} 65. Rg8 {[%clk 0:00:03.7]} 65... Rf2 {[%clk 0:00:06.1]} 66. c6
{[%clk 0:00:03.6]} 66... Rc2 {[%clk 0:00:06.2]} 67. c7 {[%clk 0:00:02.5]} 67...
Rxc7 {[%clk 0:00:05.8]} 68. Rxg2 {[%clk 0:00:03.2]} 68... Rd7+ {[%clk
0:00:06.4]} 69. Kc4 {[%clk 0:00:03.8]} 69... Rd3 {[%clk 0:00:06.6]} 70. Rh2
{[%clk 0:00:04.5]} 70... Rf3 {[%clk 0:00:06.8]} 71. Rh6+ {[%clk 0:00:04.8]}
71... Kg7 {[%clk 0:00:06.9]} 72. Rh4 {[%clk 0:00:05.7]} 72... Kg6 {[%clk
0:00:07.1]} 73. Kd4 {[%clk 0:00:06.4]} 73... Ra3 {[%clk 0:00:06.4]} 74. Rh1
{[%clk 0:00:05.1]} 74... Ra4+ {[%clk 0:00:06.5]} 75. Ke5 {[%clk 0:00:05.7]}
75... Ra5+ {[%clk 0:00:06.9]} 76. Ke6 {[%clk 0:00:06.3]} 76... Ra6+ {[%clk
0:00:07.5]} 77. Ke5 {[%clk 0:00:06.4]} 77... Ra5+ {[%clk 0:00:07.2]} 78. Ke6
{[%clk 0:00:07]} 78... Ra6+ {[%clk 0:00:05.9]} 79. Ke5 {[%clk 0:00:07.3]} 79...
Ra5+ {[%clk 0:00:06.3]} 1/2-1/2